Cogmind - Beta 16 @@@ ROGUE MODE // 2026.01.06 @ 23:43:57 Player: Legato Result: Destroyed self via exploding Nuclear Reactor Performance ------------- Evolutions (0) 0 Regions Visited (1) 200 Robots Destroyed (22) 110 Value Destroyed (450) 450 Prototype IDs (3) 60 Alien Tech Used (0) 0 Bonus (0) 0 TOTAL SCORE: 820 Bonus ------- None Cogmind --------- Core Integrity 0/250 Matter 300/300 Energy 245/250 System Corruption 0% Temperature Cool (0) Movement Walking (120) Location -10/Materials Parts ------- > --- POWER (1) -------- Ion Engine > --- PROPULSION (2) --- Aluminum Leg Aluminum Leg > --- UTILITY (2) ------ Seismic Detector > --- WEAPON (2) ------- Mace > --- INVENTORY (5) ---- Aluminum Leg Weight Redist. System Signal Interpreter Light Assault Rifle Light Assault Rifle Peak State ------------ > --- POWER ------------ Ion Engine > --- PROPULSION ------- Light Treads Light Treads > --- UTILITY ---------- Small Storage Unit Seismic Detector > --- WEAPON ----------- Assault Rifle Light Assault Rifle > --- INVENTORY -------- Ion Engine Light Ion Engine Light Ion Engine Aluminum Leg Aluminum Leg Weight Redist. System Signal Interpreter Mace [Rating: 8] Favorites ----------- Power Ion Engine Engine Ion Engine Propulsion Light Treads Treads Light Treads Leg Aluminum Leg Utility Small Storage Unit Device Seismic Detector Storage Small Storage Unit Weapon Assault Rifle Ballistic Gun Assault Rifle Impact Weapon Mace Build | -11 -10 ------- Run | Yrd Mat Slots Evolved . | . . Power . | . . Propulsion . | . . Utility . | . . Weapon . | . . Parts Attached 18 | 6 12 Power 4 | 1 3 Engine 4 | 1 3 Core . | . . Reactor . | . . Propulsion 6 | 1 5 Treads 2 | 1 1 Leg 4 | . 4 Wheel . | . . Hover . | . . Flight . | . . Utility 3 | 2 1 Device 1 | 1 . Storage 2 | 1 1 Processor . | . . Hackware . | . . Protection . | . . Artifact . | . . Weapon 5 | 2 3 Energy Gun . | . . Energy Cannon . | . . Ballistic Gun 4 | 2 2 Ballistic Cannon . | . . Launcher . | . . Special Weapon . | . . Impact Weapon 1 | . 1 Slashing Weapon . | . . Piercing Weapon . | . . Special Melee Weapon . | . . Unidentified Prototypes . | . . Parts Lost 2 | . 2 Power . | . . Propulsion . | . . Utility 1 | . 1 Weapon 1 | . 1 Highest Loss Streak 2 | . 2 To Critical Strikes . | . . Average Backups 6 | 3 7 Power 2 | 1 2 Propulsion 2 | 2 2 Utility . | . 1 Weapon 1 | . 1 Tool/Special . | . . Unused Backups 8 | . 8 Power 4 | . 4 Propulsion 2 | . 2 Utility 2 | . 2 Weapon . | . . Tool/Special . | . . Average Slot Usage (%) 98 | . 98 Engine 14 | . 14 Treads 19 | . 19 Leg 7 | . 7 Device 14 | . 14 Storage 14 | . 14 Ballistic Gun 23 | . 23 Impact Weapon 4 | . 4 Peak Build Rating 8 | 6 8 Average Rating 7 | 4 7 On Entrance 3 | . 6 Avg Prop Armor Cover (%) . | . . Naked Turns . | . . Heaviest Build 15 | 14 15 Greatest Support 40 | 20 40 Greatest Overweight (x) 1 | 1 . Average Overweight (x) . | . . Largest Inventory Capacity 15 | 8 15 Average Capacity 8 | 7 8 Most Carried 8 | 6 8 Average Carried 6 | 4 7 Final Capacity 8 | 8 5 Final Carried 5 | 5 5 Class Distribution -------------------- 100% | Mutant Dominant Class ---------------- Mutant | -10/Materials Resources | -11 -10 ----------- Run | Yrd Mat Matter Collected 708 | 313 395 Remotely . | . . Salvage Created 724 | 162 562 Parts 45 | 9 36 Haulers Intercepted . | . . Recyclers Shooed 2 | . 2 Parts Field Recycled . | . . Retrieved Matter . | . . Parts Self-Destructed . | . . Prevented . | . . Parts Restored . | . . Kills | -11 -10 ------- Run | Yrd Mat Combat Hostiles Destroyed 11 | . 11 Guns 11 | . 11 Classes Destroyed 8 | 3 5 Worker 3 | 1 2 Builder 1 | . 1 Tunneler 2 | 2 . Recycler 2 | 1 1 Operator 2 | . 2 Watcher 1 | . 1 Swarmer 3 | . 3 Grunt 8 | . 8 Best Kill Streak 3 | 3 3 Combat Bots Only 3 | . 3 Max Kills in Single Turn 1 | 1 1 Gunslinging . | . . Exploded . | . . Melee . | . . Uniques/NPCs Destroyed . | . . Combat | -11 -10 -------- Run | Yrd Mat Hostile Shots Fired 48 | . 48 Missed 18 | . 18 Hits 30 | . 30 Projectile 30 | . 30 Damage Taken 785 | . 785 Core 250 | . 250 Absorbed by Shields . | . . Core Remaining (%) 100 | 100 . Volleys Fired 77 | 14 63 Largest 2 | 2 2 Hottest 40 | 40 40 Shots Fired 144 | 25 119 Gun 144 | 25 119 Cannon . | . . Launcher . | . . Special . | . . Kinetic 144 | 25 119 Thermal . | . . Explosive . | . . Electromagnetic . | . . Robot Hit Streak 13 | 7 13 Robot Miss Streak 5 | 2 5 Penetration Max . | . . Secondary Targets . | . . Shots Hit Robots 91 | 18 73 Core Hits 40 | 7 33 Critical Kills . | . . Critical Parts Destroyed . | . . Critical Strikes . | . . Melee Attacks 26 | . 26 Impact 26 | . 26 Slashing . | . . Piercing . | . . Sneak Attacks 5 | . 5 Combat Hostiles . | . . Follow-up Attacks . | . . Damage Inflicted 1270 | 191 1079 Guns 880 | 191 689 Cannons . | . . Explosions . | . . Melee 390 | . 390 Ramming . | . . Kinetic 880 | 191 689 Thermal . | . . Explosive . | . . Electromagnetic . | . . Impact 390 | . 390 Slashing . | . . Piercing . | . . Highest Corruption . | . . Average Corruption . | . . Corruption Purged . | . . Corruption Blocked . | . . Overload Shots . | . . Overflow Damage 151 | . 151 Projectiles . | . . Explosions 46 | . 46 Melee 105 | . 105 Knockbacks . | . . Impact . | . . Kinetic . | . . Secondary . | . . Self-Inflicted Damage 111 | . 111 Shots 1 | . 1 Rammed . | . . Targets Rammed . | . . Kicked . | . . Crushed . | . . Highest Temperature 9 | . 9 Average Temperature 4 | . 4 Received Heat Transfer 177 | . 177 Siege Activations . | . . Martial Activations . | . . Shielding Activations . | . . Robots Disrupted . | . . Combat Hostiles . | . . Robots Corrupted 1 | . 1 Combat Hostiles . | . . Parts Fried 1 | . 1 Impact Corruptions 3 | . 3 Robots Melted . | . . Combat Hostiles . | . . Parts Melted . | . . Heat Transferred . | . . Parts Sabotaged . | . . Parts Stolen . | . . Parts Stripped . | . . Power Chain Reactions . | . . Alert | -11 -10 ------- Run | Yrd Mat Maximum Alert Level . | . . Low Security (%) 100 | 100 100 Level 1 . | . . Level 2 . | . . Level 3 . | . . Level 4 . | . . Level 5 . | . . High Security . | . . Max Security . | . . Peak Influence 125 | 10 125 Initial . | . . Average 30 | . 34 Influence Increases 420 | 20 400 Destroy 0b10 Robot/C 220 | . 220 Destroy 0b10 Robot/NC 55 | 20 35 Destroy Leader 62 | . 62 Successful Hack 14 | . 14 Disable Machine 60 | . 60 Destroy Structure 9 | . 9 Influence Decreases 353 | 20 333 Time Decay 333 | 20 313 Lost Part 20 | . 20 Squads Dispatched 3 | . 3 Investigation . | . . Extermination . | . . Reinforcement 3 | . 3 Assault . | . . Garrison . | . . Intercept . | . . Searches Triggered . | . . Construction Impeded . | . . Haulers Reinforced . | . . Active Scanning Responses . | . . Cargo Convoy Interrupts . | . . Stealth | -11 -10 --------- Run | Yrd Mat Distress Signals 1 | . 1 Communications Jammed . | . . Distress Signals . | . . Times Spotted 23 | . 23 Peak Tracking Total 3 | . 3 Tactical Retreats . | . . Traps | -11 -10 ------- Run | Yrd Mat Traps Triggered . | . . Indirectly . | . . Trap Hack Attempts . | . . Triggered . | . . Disarmed . | . . Reprogrammed . | . . Reused . | . . Traps Extracted . | . . Installed . | . . Triggered . | . . Machines | -11 -10 ---------- Run | Yrd Mat Machines Disabled 4 | . 4 Max in Single Turn 1 | . 1 Machines Repaired . | . . Machines Dismantled . | . . Machines Sabotaged . | . . Overloaded Fab Kills . | . . Hacking | -11 -10 --------- Run | Yrd Mat Machines Accessed 4 | . 4 Terminals 4 | . 4 Fabricators . | . . Repair Stations . | . . Recycling Units . | . . Scanalyzers . | . . Garrison Access . | . . Total Hacks 16 | . 16 Successful 9 | . 9 Failed 7 | . 7 Catastrophic . | . . Database Lockouts . | . . Manual 8 | . 8 Terminals 16 | . 16 Fabricators . | . . Repair Stations . | . . Recycling Units . | . . Scanalyzers . | . . Garrison Access . | . . Terminal Hacks 8 | . 8 Robot Analysis 2 | . 2 Prototype ID Bank 2 | . 2 Emergency Access Points 1 | . 1 Locate Traps 2 | . 2 Maintenance Status 1 | . 1 Fabricator Hacks . | . . Repair Station Hacks . | . . Recycling Unit Hacks . | . . Scanalyzer . | . . Garrison Access Hacks . | . . Unauthorized Hacks 1 | . 1 Terminals 1 | . 1 Botnet 1 | . 1 Fabricators . | . . Repair Stations . | . . Recycling Units . | . . Scanalyzers . | . . Garrison Access . | . . Data Cores Recovered . | . . Used . | . . Hacking Detections 4 | . 4 Full Trace Events . | . . Feedback Events . | . . Feedback Blocked . | . . Robot Schematics Acquired . | . . Robots Built . | . . Authchips . | . . Time . | . . Total Robot Build Rating . | . . Part Schematics Acquired . | . . Parts Built . | . . Authchips . | . . Time . | . . Total Part Build Rating . | . . Part Studies Acquired . | . . Parts Repaired . | . . Time . | . . Parts Recycled . | . . Recycled Matter . | . . Retrieved Matter . | . . Retrieved Components . | . . Parts Scanalyzed . | . . Part Schematics Acquired . | . . Parts Damaged . | . . Bothacking | -11 -10 ------------ Run | Yrd Mat Used RIF Installer . | . . Robots Hacked . | . . Non-combat . | . . Combat . | . . Robot Hacks Applied . | . . Relay Couplers Released . | . . Fabnet Peak Effective % . | . . Robots Rewired . | . . Allies Hacked . | . . Hacks Repelled . | . . Allies | -11 -10 -------- Run | Yrd Mat Total Allies . | . . Largest Group . | . . Highest-Rated Group . | . . Highest-Rated Ally . | . . Total Orders . | . . Ally Attacks . | . . Total Damage . | . . Kills . | . . Allies Corrupted . | . . Allies Melted . | . . Intel | -11 -10 ------- Run | Yrd Mat Active Infowar (turns) 1267 | 64 1203 Seismic 1267 | 64 1203 Robot Analysis Total 2 | . 2 Derelict Logs Recovered . | . . Drone Launches . | . . Drone Recoveries . | . . Exploration | -11 -10 ------------- Run | Yrd Mat Turns Passed 1376 | 173 1203 Spaces Moved 680 | 78 602 Core 3 | 3 . Treads 483 | 75 408 Legs 194 | . 194 Wheels . | . . Hover . | . . Flight . | . . Fastest Speed 50 | 50 120 Average Speed 148 | 156 147 Slowest Speed 160 | 160 160 Overloaded Moves . | . . Propulsion Burnouts . | . . Robots Hopped . | . . Potential Cave-ins 1 | . 1 Cave-ins Triggered 1 | . 1 Exploration Rate (%) 38 | 5 71 Regions Visited 1 Branch Regions . Pre-discovered Areas . | . . Known Exits Taken . | . . Unknown Exits Taken 1 | 1 . Scrap Searched . | . . Spaces Dug 9 | . 9 Terrain Destroyed 9 | . 9 Melee 9 | . 9 Projectile . | . . AOE . | . . Terrain Rammed . | . . Walls Destroyed . | . . Machines Disabled . | . . Actions | -11 -10 --------- Run | Yrd Mat Total 874 | 104 770 Wait 44 | . 44 Move 679 | 77 602 Hop . | . . Pick Up 15 | 6 9 Fast Attach 6 | 6 . Attach 1 | . 1 Detach . | . . Swap 14 | . 14 Drop 12 | 1 11 Fire 77 | 14 63 Melee 26 | . 26 Ram . | . . Kick . | . . Crush . | . . Escape Stasis . | . . Rewire . | . . Trap . | . . Miscellaneous . | . . Route ------- -11/Scrapyard -10/Materials (discovered 3 exits: [*Mat x2] / [*Min]) History --------- Turn | Location | Event 23 | -11/Scrapyard | Discovered new exit (range 15) 174 | -11/Scrapyard | Entered Materials 316 | -10/Materials | Build established: Mutant 769 | -10/Materials | Discovered new exit (range 12) 850 | -10/Materials | Crushed by falling debris 850 | -10/Materials | Core integrity fell below 50% 1079 | -10/Materials | Core integrity fell below 20% 1195 | -10/Materials | Discovered new exit (range 3) 1251 | -10/Materials | Discovered new exit (range 5) 1377 | -10/Materials | Destroyed self via exploding Nuclear Reactor Last Messages --------------- 01349_ T-07 Excavator is excavating. 01350_ U-05 Engineer lays Concrete. 01354_ R-06 Scavenger collects Datajack. 01356_ K-01 Serf cleans the Fusion Modulator. 01366_ Sneak attack on R-06 Scavenger. 01366_ Destroyed Lgt. Ion Engine. 01366_ Destroyed Tractor Beam. 01366_ R-06 Scavenger system corrupted by crushing effect. 01367_ R-06 Scavenger system terminally corrupted. 01367_ Sml. Storage Unit fried. 01369_ Acquired 52 matter. 01370_ K-01 Serf collects debris. 01372_ K-01 Serf cleans the Nuclear Reactor. 01374_ K-01 Serf collects debris. 01376_ K-01 Serf cleans the Nuclear Reactor. 01377_ Nuclear Reactor explodes. 01377_ Sml. Storage Unit destroyed. 01377_ Destroyed Sml. Storage Unit. 01377_ Assault Rifle destroyed. 01377_ Destroyed Assault Rifle. Map ----- +----------------------------------------------------+ | | | | | | | | | ?????????????????????????????????????????????????? | | ?????????????????????????????????????????????????? | | ?????????????????????????????????????????????????? | | ?????????????????????????????????????????????????? | | ???????????????????????????????????????????##????? | | ??????????????????????????????????????????? ???? | | #########??????????????????????????#####??? ???? | | !#####??????????#############"""##?? ????? | | """ # #??????????# ! ##"!!!"##? ????? | | """"" # < #??????????# #""! ""#? ????? | | """"" # #??????????# """ """ # #? ????? | | """"" / #??????????# """ """ # < ## ????? | | """ # #??????????# """ """ # ## #????? | | # #??????????# """ """ # ## #???## | | # #??????????# """ """ ## ### #?? | | # #??????????# ### ##?# #? # | | "######## #??????????#####+####### #### # # | | #?# #????###?????# ^ # # | | """ #?# ############## !k ^ #?? | | """ #?# !%/ ###??? | | """ #?# ######## #######+##### #????? | | #?# #??????# @* ###?# ## #????? | | " #?############! k * ""#?# ## #????? | | T #???# # a T"#?# ## #????? | | " #???# [ # ""#?# ## #????? | | #???# # ###?# ## #????? | | ##+######## # #???#* """ ## #????? | | # + + #???# """ ## #????? | | # ####### # = #???# """ ## #????? | | # #?????# # *%% #???# ## #????? | | # #?????# ########+####### """ ## #????? | | # #?????# #??# != *[ # """ ## #????? | | # #?????##########??# !%[== # """ ## #????? | | # ############??????# "!= """ # ## #????? | | # ## #??????# """ """ #####???# #????? | | # ## #??????# """ """ #???????# #????? | | # ## #??????#== #???????# #????? | | # ## #?????##%* #???????# #????? | | + ## ** #????###############???????#/#????? | | # ## ** #????# #?????????????????????? | | # ## * #????# """ #?????????????????????? | | # ## #????# """ #?????????????????????? | | ######+####????#= """ #??#??????????????????? | | ^^ #??????# #? ??????????????????? | | ^^ #??????# """ # ??????????????????? | | ######## """ + ?????????????????? | +----------------------------------------------------+ Best States ------------- Heat Dissipation 25 Energy Generation 10 Energy Capacity 250 Matter Stores 300 Matter Capacity 300 Sight Range 16 Terrain Scan Density 10 Evasion (%) 55 Recoil Reduction 2 Item Schematics ----------------- None Robot Schematics ------------------ None Fabricated ------------ Nothing Repaired ---------- Nothing Studied --------- None Alien Tech Used ----------------- None Achievements -------------- None Challenges ------------ None Game ------ Seed SmartWarlordChargecaster Manual? 0 Play Time 00:12:04 Cumulative 37.3 hours Start 2026.01.06 @ 23:33:42 End 2026.01.06 @ 23:43:57 Sessions 1 Manual Loads 0 Difficulty Rogue Special Mode None Game No. 49 Rogue 49 Adventurer 0 Explorer 0 Win Type - Total 0 Types 0/0/0/0/0/0/0/0/0/0 Lore% 33 Gallery% 34 Achievement% 24 Wizard Run 0 Options --------- Layout 0 ASCII 0 Keyboard 0 Movement Arrows Keybinds 1 Fullscreen 1 Font 18/X11 Map View 76x50 Zoom Use 0% Tactical HUD 1 Map Filters NONE Filters NONE Steam 1 RUN: 9d65a061-33e1-45b3-a7b6-fd0726251ed5